{"text_format":"1","workbook":"xlsx","n_sheets":4,"sheets":["จุดตรวจวัดคนเก็บ","จุดตรวจวัดสถานีอัติ","Sheet1","Sheet2"],"not_rendered":{"charts":0,"images":0,"macros":1,"external_links":0,"defined_names":3,"comments":1,"pivot_tables":0},"unopened":[],"bounds":{"document_bytes":16777216,"sheet_cells":100000,"rows_first":2000,"rows_last":500,"rows_between":2000,"halvings":0,"cell_chars":16384,"cell_head_chars":4096},"cells_cut":0,"cells_raw":0,"read":"whole","date_system":"1900"}

{"sheet":"จุดตรวจวัดคนเก็บ","index":0,"n_rows":27,"n_cols":10,"rows_kept":27,"cut":false,"hidden":false,"merged":[]}
[null,null,null,null,null,"สถานีตรวจวัดละ",100,"บาท","ต่อสถานี","ต่อปี"]
["Station","ภาค","Month","Year",null,"จำนวนปี","จำนวนสถานีตรวจวัดต่อปี","คิดเป็นเงิน"]
["PYC1",null,null,2565,null,{"$f":"COUNTA(D3:D2000)","v":2},{"$f":"COUNTA(A3:A2000)","v":25},{"$f":"(G3*F3)*100","v":5000},"บาท"]
["PYC2",null,null,2566,null,null,null,{"$f":"(G4*F4)*100","v":0}]
["BKP1",null,null,null,null,null,null,0]
["KBB 1",null,null,null,null,null,null,0]
["KBB 2",null,null,null,null,null,null,0]
["CMC1",null,null,null,null,null,null,0]
["CMC2",null,null,null,null,null,null,0]
["CMC3",null,null,null,null,null,null,0]
["CMC4",null,null,null,null,null,null,0]
["CMC5",null,null,null,null,null,null,0]
["CMC6",null,null,null,null,null,null,0]
["CMC7",null,null,null,null,null,null,0]
["KTK1",null,null,null,null,null,null,0]
["KTK2",null,null,null,null,null,null,0]
["NHC1",null,null,null,null,null,null,0]
["NHC2",null,null,null,null,null,null,0]
["HYC1",null,null,null,null,null,null,0]
["HYC2",null,null,null,null,null,null,0]
["HYC3",null,null,null,null,null,null,0]
["HYC4",null,null,null,null,null,null,0]
["HYC5",null,null,null,null,null,"รวม",{"$f":"SUM(H3:H22)","v":5000}]
["HYC6"]
["KLD1"]
["KLD2"]
["KLD3"]

{"sheet":"จุดตรวจวัดสถานีอัติ","index":1,"n_rows":10,"n_cols":13,"rows_kept":10,"cut":false,"hidden":false,"merged":[]}
[null,null,null,null,null,null,"สถานีตรวจวัดละ",6,"สตางค์","ต่อพารามิเตอร์ต่อชั่วโมง"]
["Station","ภาค","Month","Year",null,"จำนวนปี","จำนวนชั่วโมงต่อวัน","จำนวนวัน","จำนวนชั่วโมงทั้งหมด","จำนวนพารามิเตอร์","จำนวนสถานีอัติฯ","คิดเป็นเงิน"]
["BK01","ภาคตะวันออก",11,2564,null,{"$f":"COUNTA(D3:D2000)","v":8},24,{"$f":"365*F3","v":2920},{"$f":"H3*G3","v":70080},6,{"$f":"COUNTA(A3:A2000)","v":8},{"$f":"(J3*I3*K3)*0.06","v":201830.39999999999},"บาท"]
["BK02","ภาคตะวันออก",11,2563]
["BK03","ภาคตะวันออก",11,2562]
["BK04","ภาคตะวันออก",11,2561]
["BK06","ภาคตะวันออก",11,2560]
["BK07","ภาคตะวันออก",11,2559]
["BK08","ภาคตะวันออก",11,2558]
["BK09","ภาคตะวันออก",11,2557]

{"sheet":"Sheet1","index":2,"n_rows":0,"n_cols":0,"rows_kept":0,"cut":false,"hidden":false,"merged":[]}

{"sheet":"Sheet2","index":3,"n_rows":0,"n_cols":0,"rows_kept":0,"cut":false,"hidden":false,"merged":[]}